fUSD/lending_fUSD_20241001
["ID","MTS","AMOUNT","RATE_DAILY","PERIOD"]
[339641638,1727788630606,500.0,0.00021999,120]
[339641639,1727788630882,500.0,0.00021999,120]
[339641640,1727788631161,500.0,0.00021999,120]
[339641641,1727788631451,500.0,0.00021999,120]
[339641642,1727788631726,500.0,0.00021999,120]
[339641643,1727788631996,500.0,0.00021999,120]
[339641644,1727788632257,150.0,0.00021999,120]
[339641645,1727788632362,500.0,0.00021999,120]
[339641646,1727788632561,150.0,0.00021999,120]
[339641647,1727788632734,500.0,0.00021999,120]
[339641648,1727788632830,150.0,0.00021999,120]
[339641649,1727788633008,500.0,0.00021999,120]
[339641650,1727788633122,150.0,0.00021999,120]
[339641651,1727788633283,500.0,0.00021999,120]
[339641652,1727788633419,150.0,0.00021999,120]
[339641653,1727788633550,363.352527,0.00021999,120]
[339641654,1727788633680,150.0,0.00021999,120]
[339641655,1727788633962,150.0,0.00021999,120]
[339641656,1727788634243,150.0,0.00021999,120]
[339641657,1727788634645,150.0,0.00021999,120]
[339641658,1727788634947,150.0,0.00021999,120]
[339641659,1727788635209,150.0,0.00021999,120]
[339641660,1727788635472,150.0,0.00021999,120]
[339641661,1727788635774,150.0,0.00021999,120]
[339641662,1727788636070,150.0,0.00021999,120]
[339641663,1727788636319,150.0,0.00021999,120]
[339641664,1727788636605,150.0,0.00021999,120]
[339641665,1727788636891,150.0,0.00021999,120]
[339641666,1727788637318,150.0,0.00021999,120]
[339641667,1727788637634,150.0,0.00021999,120]
[339641668,1727788637943,158.02825485,0.00021999,120]
[339641669,1727788646997,500.0,0.00021999,120]
[339641670,1727788647290,504.87104723,0.00021999,120]
[339641671,1727788652215,500.0,0.00021999,120]
[339641672,1727788678801,108139.14241412,0.00022,120]
[339641673,1727788703150,500.0,0.00021999,120]
[339641674,1727788703421,500.0,0.00021999,120]
[339641675,1727788703702,500.0,0.00021999,120]
[339641676,1727788704012,583.35,0.00021999,120]
[339641677,1727788705082,500.0,0.00021999,120]
[339641678,1727788705414,500.0,0.00021999,120]
[339641679,1727788705712,500.0,0.00021999,120]
[339641680,1727788706003,500.0,0.00021999,120]
[339641681,1727788706318,500.0,0.00021999,120]
[339641682,1727788706604,500.0,0.00021999,120]
[339641683,1727788706893,500.0,0.00021999,120]
[339641684,1727788707241,500.0,0.00021999,120]
[339641685,1727788707841,169.40113096,0.00021999,120]
[339641686,1727788710015,500.0,0.00021999,120]
[339641687,1727788710655,500.0,0.00021999,120]
[339641688,1727788711088,500.0,0.00021999,120]
[339641689,1727788711252,500.0,0.00021999,120]
[339641690,1727788711590,500.0,0.00021999,120]
[339641691,1727788711822,500.0,0.00021999,120]
[339641692,1727788712114,500.0,0.00021999,120]
[339641693,1727788712401,500.0,0.00021999,120]
[339641694,1727788712728,500.0,0.00021999,120]
[339641695,1727788712992,345.77148162,0.00021999,120]
[339641696,1727788715187,500.0,0.00021999,120]
[339641697,1727788715443,500.0,0.00021999,120]
[339641698,1727788715899,507.63233191,0.00021999,120]
[339641699,1727788718201,500.0,0.00021999,120]
[339641700,1727788718483,500.0,0.00021999,120]
[339641701,1727788718749,504.10801187,0.00021999,120]
[339641702,1727788721303,500.0,0.00021999,120]
[339641703,1727788721460,505.59217846,0.00021999,120]
[339641704,1727788723711,500.0,0.00021999,120]
[339641705,1727788724019,500.0,0.00021999,120]
[339641706,1727788724287,505.24005819,0.00021999,120]
[339641707,1727788728800,500.0,0.00021999,120]
[339641708,1727788729168,500.0,0.00021999,120]
[339641709,1727788729452,504.44914243,0.00021999,120]
[339641710,1727788731671,500.0,0.00021999,120]
[339641711,1727788731951,500.0,0.00021999,120]
[339641712,1727788732215,559.65251302,0.00021999,120]
[339641713,1727788734365,500.0,0.00021999,120]
[339641714,1727788734638,500.0,0.00021999,120]
[339641715,1727788734953,502.02024119,0.00021999,120]
[339641716,1727788738892,500.0,0.00021999,120]
[339641717,1727788739193,500.0,0.00021999,120]
[339641718,1727788739472,503.14980325,0.00021999,120]
[339641719,1727788742032,500.0,0.00021999,120]
[339641720,1727788742314,500.0,0.00021999,120]
[339641721,1727788742737,500.0,0.00021999,120]
[339641722,1727788742997,158.4610803,0.00021999,120]
[339641723,1727788757486,500.0,0.00021999,120]
[339641724,1727788757779,500.0,0.00021999,120]
[339641725,1727788758061,494.52813486,0.00021999,120]
[339641726,1727788766335,503.12838264,0.00021999,120]
[339641727,1727788778733,504.25551066,0.00021999,120]
[339641728,1727788781376,503.45705249,0.00021999,120]
[339641729,1727788797688,500.0,0.00021999,120]
[339641730,1727788797977,500.0,0.00021999,120]
[339641731,1727788798251,500.0,0.00021999,120]
[339641732,1727788798514,505.53079861,0.00021999,120]
[339641733,1727788809425,500.0,0.00021999,120]
[339641734,1727788809875,500.0,0.00021999,120]
[339641735,1727788810198,202.2523713,0.00021999,120]
[339641736,1727788812512,500.0,0.00021999,120]
[339641737,1727788812801,500.0,0.00021999,120]
[339641738,1727788813089,500.0,0.00021999,120]
[339641739,1727788813372,500.0,0.00021999,120]
[339641740,1727788813824,500.0,0.00021999,120]
[339641741,1727788814089,500.0,0.00021999,120]
[339641742,1727788814537,530.22045784,0.00021999,120]
[339641743,1727788816902,500.0,0.00021999,120]
[339641744,1727788817756,500.0,0.00021999,120]
[339641745,1727788818082,500.0,0.00021999,120]
[339641746,1727788818368,500.0,0.00021999,120]
[339641747,1727788818657,155.76281687,0.00021999,120]
[339641748,1727788821604,500.0,0.00021999,120]
[339641749,1727788821905,500.0,0.00021999,120]
[339641750,1727788822192,501.1662994,0.00021999,120]
[339641751,1727788826875,500.0,0.00021999,120]
[339641752,1727788827176,500.0,0.00021999,120]
[339641753,1727788827466,500.0,0.00021999,120]
[339641754,1727788827762,500.0,0.00021999,120]
[339641755,1727788828101,292.34441394,0.00021999,120]
[339641756,1727788865896,500.9749694,0.00021999,120]
[339641757,1727788873178,150.0,9.277e-05,2]
[339641758,1727788873201,150.0,9.277e-05,2]
[339641759,1727788873223,150.0,9.277e-05,2]
[339641760,1727788873244,137.89,9.277e-05,2]
[339641762,1727788985382,500.0,0.00021999,120]
[339641763,1727789028587,500.0,0.00021999,120]
[339641764,1727789028882,500.0,0.00021999,120]
[339641765,1727789029162,500.0,0.00021999,120]
[339641766,1727789029929,500.0,0.00021999,120]
[339641767,1727789030080,500.0,0.00021999,120]
[339641768,1727789030340,500.0,0.00021999,120]
[339641769,1727789030620,500.0,0.00021999,120]
[339641770,1727789030907,500.0,0.00021999,120]
[339641771,1727789031206,500.0,0.00021999,120]
[339641772,1727789031464,500.0,0.00021999,120]
[339641773,1727789031750,500.0,0.00021999,120]
[339641774,1727789032021,500.0,0.00021999,120]
[339641775,1727789032298,500.0,0.00021999,120]
[339641776,1727789032583,500.0,0.00021999,120]
[339641777,1727789032864,500.0,0.00021999,120]
[339641778,1727789033145,500.0,0.00021999,120]
[339641779,1727789033420,500.0,0.00021999,120]
[339641780,1727789034040,265.03523209,0.00021999,120]
[339641781,1727789074477,500.0,0.00021999,120]
[339641782,1727789074767,500.0,0.00021999,120]
[339641783,1727789075057,500.0,0.00021999,120]
[339641784,1727789075383,500.0,0.00021999,120]
[339641785,1727789075653,500.0,0.00021999,120]
[339641786,1727789075903,500.0,0.00021999,120]
[339641787,1727789076164,500.0,0.00021999,120]
[339641788,1727789076443,500.0,0.00021999,120]
[339641789,1727789076722,500.0,0.00021999,120]
[339641790,1727789076980,500.0,0.00021999,120]
[339641791,1727789077282,500.0,0.00021999,120]
[339641792,1727789077562,500.0,0.00021999,120]
[339641793,1727789078036,500.0,0.00021999,120]
[339641794,1727789078316,500.0,0.00021999,120]
[339641795,1727789078752,500.0,0.00021999,120]
[339641796,1727789085169,500.0,0.00021999,120]
[339641797,1727789085487,500.0,0.00021999,120]
[339641798,1727789085812,500.0,0.00021999,120]
[339641799,1727789086102,500.0,0.00021999,120]
[339641800,1727789086383,500.0,0.00021999,120]
[339641801,1727789087012,500.0,0.00021999,120]
[339641802,1727789087347,500.0,0.00021999,120]
[339641803,1727789087617,500.0,0.00021999,120]
[339641804,1727789087887,500.0,0.00021999,120]
[339641805,1727789088147,500.0,0.00021999,120]
[339641806,1727789088449,526.34025766,0.00021999,120]
[339641807,1727789115015,300.6914882,0.000121,30]
[339641808,1727789148872,508.30241912,0.00021999,120]
[339641809,1727789169355,500.0,0.00021999,120]
[339641810,1727789169635,500.0,0.00021999,120]
[339641811,1727789169893,400.41998824,0.00021999,120]
[339641812,1727789172137,500.0,0.00021999,120]
[339641813,1727789318299,150.0,0.00010002,2]
[339641824,1727789432060,-448.54109934,0.0001078,2]
[339641825,1727789432075,-58.14590066,0.0001078,2]
[339641826,1727789432088,-286.04552543,0.00010798,2]
[339641827,1727789432122,-4039.96997457,0.00010798,2]
[339641828,1727789432134,-1102.0426,0.000109,2]
[339641829,1727789432145,-2118.73209659,0.00010999,2]
[339641830,1727789432161,-2426.68161794,0.00010999,2]
[339641831,1727789432174,-150.0,0.00010999,2]
[339641832,1727789432185,-1069.076,0.00011,2]
[339641833,1727789432196,-182.7609769,0.00011,2]
[339641834,1727789432208,-279.69657276,0.00011,2]
[339641835,1727789432222,-1075.43,0.00011,2]
[339641836,1727789432235,-255.97559429,0.00011,2]
[339641837,1727789432260,-106.06785605,0.00011,2]
[339641838,1727789432272,-348.40287217,0.00011,2]
[339641839,1727789432292,-299.57312783,0.00011,2]
[339641840,1727789432302,-441.89419357,0.00011,2]
[339641841,1727789432332,-822.10580643,0.00011,2]
[339641842,1727789432343,-1296.0,0.00011,2]
[339641843,1727789432352,-2128.94315657,0.00011,2]
[339641844,1727789432365,-552.46305185,0.00011,2]
[339641845,1727789432378,-2314.4383043,0.00011,2]
[339641846,1727789432400,-358.03106852,0.00011,2]
[339641847,1727789432412,-519.12441876,0.00011,2]
[339641848,1727789432424,-272.67503256,0.00011,2]
[339641959,1727789438112,-176.32496744,0.00011,2]
[339641960,1727789438122,-150.0,0.00011,2]
[339641961,1727789438132,-352.95614398,0.00011,2]
[339641962,1727789438144,-185.04385602,0.00011,2]
[339641963,1727789438155,-125176.62205842,0.00011,2]
[339641964,1727789438173,-1545.58832752,0.00011,2]
[339641965,1727789438295,-264.399938,0.00011,2]
[339641966,1727789438412,-466.12572474,0.00011,2]
[339641970,1727789440339,-313.68845188,0.000109,2]
[339641971,1727789440351,-1148.0,0.00011,2]
[339641972,1727789440362,-8649.41628134,0.00011,2]
[339641973,1727789440374,-5757.00546997,0.00011,2]
[339641980,1727789443088,-6099.9796538,0.00011,2]
[339641981,1727789443146,-396.15974194,0.00011,2]
[339641982,1727789443205,-677.4999998,0.00011,2]
[339641983,1727789443266,-2620.0,0.00011,2]
[339641984,1727789443279,-423373.04012556,0.00011,2]
[339641985,1727789443290,-7536.15205914,0.00011,2]
[339641986,1727789443382,-1646.43108513,0.00011,2]
[339641987,1727789443395,-1356.48725414,0.00011,2]
[339641990,1727789446052,-655.25,0.00011,2]
[339641991,1727789446223,-12848.75,0.00011,2]
[339641992,1727789446234,-11509.15295813,0.00011,2]
[339641993,1727789446244,-1602.62,0.00011,2]
[339641994,1727789446254,-1050.0,0.00011,2]
[339641995,1727789446264,-151.0,0.00011,2]
[339641996,1727789446521,-151.0,0.00011,2]
[339641997,1727789446546,-51082.47704187,0.00011,2]
[339641998,1727789446557,-1592.03474949,0.00011,2]
[339641999,1727789460095,150.0,9.313e-05,2]
[339642000,1727789460116,150.0,9.313e-05,2]
[339642001,1727789460137,150.0,9.313e-05,2]
[339642002,1727789460158,108.49,9.313e-05,2]
[339642003,1727789522543,200.0,9.951e-05,30]
[339642004,1727789820119,500.0,0.00022,120]
[339642005,1727789832914,500.0,0.00022,120]
[339642006,1727789839749,500.0,0.00022,120]
[339642007,1727789846951,500.0,0.00022,120]
[339642008,1727789854657,500.0,0.00022,120]
[339642009,1727789861196,500.0,0.00022,120]
[339642010,1727789868366,500.0,0.00022,120]
[339642011,1727789876717,500.0,0.00022,120]
[339642012,1727789884842,500.0,0.00022,120]
[339642013,1727789892586,500.0,0.00022,120]
[339642014,1727789902011,216.0,0.00022,120]
[339642015,1727790036231,150.0,8.433e-05,2]
[339642016,1727790036253,150.0,8.433e-05,2]
[339642017,1727790036273,150.0,8.433e-05,2]
[339642018,1727790036296,113.71,8.433e-05,2]
[339642019,1727790069504,107973.63156785,1.5e-05,7]
[339642021,1727790308733,200.00000001,0.00014591,30]
[339642022,1727790426799,-214.3,0.00023,120]
[339642023,1727790444361,707.48251856,0.00022,120]
[339642024,1727790588650,150.0,8.299e-05,2]
[339642025,1727790588672,150.0,8.299e-05,2]
[339642026,1727790588694,150.0,8.299e-05,2]
[339642027,1727790588717,85.52,8.299e-05,2]
[339642035,1727790632286,-825.29,0.00010217,2]
[339642036,1727790632296,-224.29,0.00010253,2]
[339642037,1727790632305,-250.0,0.00010263,2]
[339642038,1727790632315,-457.66180671,0.00010263,2]
[339642039,1727790632325,-275.21,0.00010302,2]
[339642040,1727790632333,-535.52,0.00010563,2]
[339642041,1727790632343,-2118.8868,0.0001058,2]
[339642042,1727790632352,-722.56598837,0.0001068,2]
[339642043,1727790632366,-328.4348001,0.0001068,2]
[339642044,1727790632381,-5049.68238559,0.0001068,2]
[339642045,1727790632392,-3899.38637191,0.0001068,2]
[339642046,1727790632404,-1000.0,0.000108,2]
[339642047,1727790632414,-2616.267,0.000108,2]
[339642048,1727790632423,-464.159,0.00010899,2]
[339642049,1727790632433,-150.0,0.00010899,2]
[339642050,1727790632442,-551.07091643,0.000109,2]
[339642051,1727790632454,-238.05638357,0.000109,2]
[339642052,1727790632464,-4432.5250201,0.000109,2]
[339642053,1727790632475,-1189.956665,0.000109,2]
[339642054,1727790632491,-792.16214693,0.000109,2]
[339642055,1727790632502,-849.97896667,0.000109,2]
[339642056,1727790632513,-6225.7093259,0.000109,2]
[339642057,1727790634994,-298.62086198,0.000109,2]
[339642058,1727790635006,-26501.16271342,0.000109,2]
[339642059,1727790635016,-24985.0206,0.000109,2]
[339642060,1727790635025,-10184.8138,0.000109,2]
[339642061,1727790635035,-857.0085,0.000109,2]
[339642062,1727790635044,-1372.656,0.000109,2]
[339642063,1727790635054,-671.00504434,0.000109,2]
[339642064,1727790635063,-1000.0,0.00010907,2]
[339642065,1727790635073,-433.04,0.00010912,2]
[339642066,1727790635082,-8153.4,0.00010912,2]
[339642067,1727790635091,-386.85,0.00010912,2]
[339642068,1727790635101,-1703.14,0.00010912,2]
[339642069,1727790635110,-168.99,0.00010959,2]
[339642070,1727790635125,-166.56,0.00010959,2]
[339642071,1727790635135,-200.78163316,0.00010973,2]
[339642073,1727790635144,-160.61806592,0.00010973,2]
[339642075,1727790635153,-500.0,0.00010973,2]
[339642077,1727790635163,-334.43549302,0.00010999,2]
[339642079,1727790635172,-500.0,0.00010999,2]
[339642080,1727790635181,-500.0,0.00010999,2]
[339642082,1727790635191,-500.0,0.00010999,2]
[339642084,1727790635200,-341.59428465,0.00010999,2]
[339642086,1727790635209,-500.0,0.00010999,2]
[339642088,1727790635218,-500.76881875,0.00010999,2]
[339642090,1727790635227,-500.0,0.00010999,2]
[339642092,1727790635236,-500.0,0.00010999,2]
[339642094,1727790635245,-500.0,0.00010999,2]
[339642096,1727790635254,-500.0,0.00010999,2]
[339642098,1727790635263,-478.85769956,0.00010999,2]
[339642100,1727790635272,-434.05899699,0.00010999,2]
[339642102,1727790635281,-235.65727592,0.00010999,2]
[339642104,1727790635291,-500.0,0.00010999,2]
[339642106,1727790635300,-500.0,0.00010999,2]
[339642108,1727790635309,-500.0,0.00010999,2]
[339642110,1727790635318,-500.0,0.00010999,2]
[339642112,1727790635327,-500.0,0.00010999,2]
[339642113,1727790635336,-500.0,0.00010999,2]
[339642116,1727790635346,-500.0,0.00010999,2]
[339642118,1727790635355,-500.0,0.00010999,2]
[339642120,1727790635365,-224.16969954,0.00010999,2]
[339642121,1727790635380,-500.0,0.00010999,2]
[339642123,1727790635389,-1063.4,0.00011,2]
[339642125,1727790635398,-1296.0,0.00011,2]
[339642128,1727790635408,-625.0,0.00011,2]
[339642130,1727790635418,-449.0,0.00011,2]
[339642131,1727790635427,-810.0,0.00011,2]
[339642133,1727790635437,-559.0,0.00011,2]
[339642135,1727790635447,-933.0,0.00011,2]
[339642137,1727790635459,-1905.0,0.00011,2]
[339642139,1727790635468,-554.0,0.00011,2]
[339642141,1727790635478,-2070.865,0.00011,2]
[339642143,1727790635487,-1910.0,0.00011,2]
[339642145,1727790635496,-1148.0,0.00011,2]
[339642147,1727790635505,-5873.0,0.00011,2]
[339642149,1727790635514,-13504.0,0.00011,2]
[339642151,1727790635524,-150.0,0.00011,2]
[339642153,1727790635534,-200.0,0.00011,2]
[339642155,1727790635544,-48579.69561377,0.00011,2]
[339642157,1727790635557,-360.246502,0.00011,2]
[339642159,1727790635569,-495.72833055,0.00011,2]
[339642162,1727790635580,-1160.73125044,0.00011,2]
[339642164,1727790635592,-1296.09412454,0.00011,2]
[339642166,1727790635603,-6178.9825058,0.00011,2]
[339642168,1727790635614,-8606.23695535,0.00011,2]
[339642170,1727790635631,-3605.61418377,0.00011,2]
[339642172,1727790635642,-328.01300429,0.00011,2]
[339642175,1727790635655,-3245.1975449,0.00011,2]
[339642177,1727790635665,-42152.99357282,0.00011,2]
[339642179,1727790635676,-2080.63,0.00011,2]
[339642204,1727790638349,-500.0,0.00010973,2]
[339642205,1727790638358,-64959.88285952,0.00011,2]
[339642206,1727790638368,-581.0996,0.00011,2]
[339642207,1727790638386,-477.85701832,0.00011,2]
[339642208,1727790638396,-616.0766574,0.00011,2]
[339642209,1727790638408,-600.5,0.00011,2]
[339642210,1727790638419,-314000.00000005,0.00011,2]
[339642211,1727790638430,-394.15263389,0.00011,2]
[339642212,1727790638440,-10605.63993783,0.00011,2]
[339642213,1727790638452,-8014.29302,0.00011,2]
[339642214,1727790638463,-10903.20915914,0.00011,2]
[339642215,1727790638474,-360.53268373,0.00011,2]
[339642216,1727790638485,-1682.0579735,0.00011,2]
[339642217,1727790638496,-6180.0958,0.00011,2]
[339642218,1727790638506,-628.01,0.00011,2]
[339642219,1727790638517,-296.55118558,0.00011,2]
[339642220,1727790638535,-291.49731741,0.00011,2]
[339642221,1727790638547,-2144.37888385,0.00011,2]
[339642222,1727790638560,-1000.0,0.00011,2]
[339642223,1727790638571,-37722.0,0.00011,2]
[339642224,1727790638582,-3013.58673412,0.00011,2]
[339642225,1727790638593,-255.35,0.00011,2]
[339642226,1727790638607,-572.13343351,0.00011,2]
[339642227,1727790638618,-209395.65297624,0.00011,2]
[339642228,1727790638630,-1442.36,0.00011,2]
[339642229,1727790638639,-1050.0,0.00011,2]
[339642230,1727790638648,-671.00504428,0.00011111,2]
[339642231,1727790638658,-240.26,0.00011129,2]
[339642232,1727790638667,-150.0,0.00011131,2]
[339642233,1727790638676,-341.07583,0.0001114,2]
[339642234,1727790638685,-150.0,0.00011188,2]
[339642235,1727790638694,-150.0,0.000112,2]
[339642236,1727790638703,-150.0,0.00011244,2]
[339642237,1727790638712,-671.00504428,0.00011322,2]
[339642238,1727790638722,-316.8790314,0.00011339,2]
[339642240,1727790638731,-150.32,0.000114,2]
[339642242,1727790638740,-150.0,0.000114,2]
[339642245,1727790638749,-150.0,0.000114,2]
[339642248,1727790638758,-150.0,0.000114,2]
[339642250,1727790638767,-150.0,0.000114,2]
[339642251,1727790638777,-150.0,0.000114,2]
[339642252,1727790638786,-150.0,0.000114,2]
[339642253,1727790638795,-297.68,0.000114,2]
[339642254,1727790638804,-2751.0,0.00011507,2]
[339642255,1727790638813,-671.00504428,0.00011533,2]
[339642256,1727790638822,-150.0,0.00011589,2]
[339642257,1727790638831,-150.51117443,0.00011589,2]
[339642258,1727790638841,-150.0,0.00011589,2]
[339642259,1727790638850,-150.10019286,0.00011589,2]
[339642260,1727790638859,-150.0,0.00011589,2]
[339642261,1727790638868,-275.21,0.0001159,2]
[339642262,1727790638879,-150.0,0.000116,2]
[339642263,1727790638889,-150.0,0.000116,2]
[339642264,1727790638898,-150.0,0.000116,2]
[339642265,1727790638906,-166.56,0.0001169,2]
[339642266,1727790638915,-671.00504428,0.00011744,2]
[339642267,1727790638924,-184.110415,0.00011777,2]
[339642268,1727790638933,-357.029547,0.00011777,2]
[339642269,1727790638942,-357.029547,0.00011924,2]
[339642270,1727790638950,-198.0,0.00011945,2]
[339642271,1727790638959,-671.00504428,0.00011956,2]
[339642272,1727790638969,-1004.91258967,0.00012,2]
[339642273,1727790638978,-10115.31622357,0.00012,2]
[339642274,1727790638987,-900.0,0.00012,3]
[339642275,1727790638997,-200.0,0.00012,2]
[339642276,1727790639005,-200.0,0.00012,2]
[339642277,1727790639014,-180.0,0.00012055,2]
[339642278,1727790639024,-184.110415,0.00012071,2]
[339642279,1727790639032,-357.029547,0.00012071,2]
[339642280,1727790639041,-671.00504428,0.00012167,2]
[339642281,1727790639050,-357.029547,0.00012218,2]
[339642282,1727790639059,-193.0,0.0001226,2]
[339642283,1727790639069,-1000.0,0.0001227,2]
[339642284,1727790639079,-433.04,0.00012276,2]
[339642285,1727790639088,-1000.0,0.00012329,2]
[339642286,1727790639097,-1000.0,0.00012329,2]
[339642287,1727790639107,-1000.0,0.00012329,2]
[339642288,1727790639116,-1000.0,0.00012329,2]
[339642289,1727790639128,-1000.0,0.00012329,2]
[339642290,1727790639136,-406.0125813,0.00012329,2]
[339642291,1727790639146,-1000.0,0.00012329,2]
[339642292,1727790639155,-1000.0,0.00012329,2]
[339642293,1727790639164,-1000.0,0.00012329,2]
[339642294,1727790639173,-1000.0,0.00012329,2]
[339642295,1727790639182,-1000.0,0.00012329,2]
[339642296,1727790639191,-1000.0,0.00012329,2]
[339642297,1727790639200,-1000.0,0.00012329,2]
[339642298,1727790639209,-1000.0,0.00012329,2]
[339642299,1727790639218,-1000.0,0.00012329,2]
[339642300,1727790639227,-1000.0,0.00012329,2]
[339642301,1727790639236,-151.0,0.00012329,2]
[339642302,1727790639245,-151.0,0.00012329,2]
[339642303,1727790639254,-151.0,0.00012329,2]
[339642304,1727790639263,-151.0,0.00012329,2]
[339642305,1727790639273,-158.864438,0.00012329,2]
[339642306,1727790639282,-158.864438,0.00012329,2]
[339642307,1727790639291,-151.0,0.00012329,2]
[339642308,1727790639300,-186.062215,0.00012329,2]
[339642309,1727790639309,-186.062215,0.00012329,2]
[339642310,1727790639318,-151.0,0.00012329,2]
[339642311,1727790639328,-151.0,0.00012329,2]
[339642312,1727790639338,-151.0,0.00012329,2]
[339642313,1727790639347,-151.0,0.00012329,2]
[339642314,1727790639355,-277.46872,0.00012329,2]
[339642315,1727790639367,-277.46872,0.00012329,2]
[339642316,1727790639386,-151.0,0.00012329,2]
[339642317,1727790639397,-500.0,0.00012342,2]
[339642318,1727790639408,-184.110415,0.00012365,2]
[339642319,1727790639419,-357.029547,0.00012365,2]
[339642320,1727790639428,-671.00504428,0.00012378,2]
[339642321,1727790639438,-3231.05205786,0.0001238,2]
[339642322,1727790639447,-1010.9,0.000124,2]
[339642323,1727790639456,-166.56,0.0001242,2]
[339642324,1727790639464,-8023.62667164,0.00012444,2]
[339642325,1727790639474,-167.6,0.00012445,2]
[339642326,1727790639483,-169.62,0.00012445,2]
[339642327,1727790639492,-783.0,0.000125,2]
[339642328,1727790639502,-702.61027353,0.000125,3]
[339642329,1727790639512,-240.26,0.0001252,2]
[339642330,1727790639521,-671.00504428,0.00012589,2]
[339642331,1727790639531,-7655.00717688,0.0001265,10]
[339642332,1727790639539,-1500.0,0.00012759,2]
[339642333,1727790639549,-1500.0,0.00012764,2]
[339642334,1727790639559,-1326.62,0.000128,5]
[339642335,1727790639568,-1979.680886,0.000128,2]
[339642336,1727790639577,-671.00504428,0.000128,2]
[339642337,1727790639586,-169.80060804,0.000128,2]
[339642338,1727790639595,-169.80060804,0.000128,2]
[339642339,1727790639604,-169.80060804,0.000128,2]
[339642340,1727790639614,-169.80060804,0.000128,2]
[339642341,1727790639624,-169.80060804,0.000128,2]
[339642342,1727790639634,-170.3,0.000128,2]
[339642343,1727790639643,-203.83572965,0.000128,2]
[339642344,1727790639653,-203.83572965,0.000128,2]
[339642345,1727790639662,-203.83572965,0.000128,2]
[339642346,1727790639671,-203.83572965,0.000128,2]
[339642347,1727790639681,-203.83572965,0.000128,2]
[339642348,1727790639690,-203.83572965,0.000128,2]
[339642349,1727790639699,-203.83572965,0.000128,2]
[339642350,1727790639708,-203.83572965,0.000128,2]
[339642351,1727790639718,-203.83572965,0.000128,2]
[339642352,1727790639727,-203.83572965,0.000128,2]
[339642353,1727790639737,-203.83572965,0.000128,2]
[339642354,1727790639747,-203.83572965,0.000128,2]
[339642355,1727790639756,-203.83572965,0.000128,2]
[339642356,1727790639766,-203.83572965,0.000128,2]
[339642357,1727790639776,-203.83572965,0.000128,2]
[339642358,1727790639785,-203.83572965,0.000128,2]
[339642359,1727790639795,-203.83572965,0.000128,2]
[339642360,1727790639805,-203.83572965,0.000128,2]
[339642361,1727790639815,-203.83572965,0.000128,2]
[339642362,1727790639824,-204.33,0.000128,2]